[Event "Late-Titled-Tuesday-Blitz-January-23-2024"]
[Site "Chess.com"]
[Date "2024.01.23"]
[Round "10"]
[White "vugarrasulov"]
[Black "dropstoneDP"]
[Result "0-1"]
[WhiteElo "2938"]
[BlackElo "3053"]
[TimeControl "180+1"]
[EndTime "15:55:08 PST"]
[Termination "dropstoneDP won on time"]

1. d4 {[%clk 0:03:00.9]} 1... d5 {[%clk 0:03:00.1]} 2. Nf3 {[%clk 0:03:01.5]}
2... Nf6 {[%clk 0:03:00.3]} 3. Bf4 {[%clk 0:03:02]} 3... c5 {[%clk 0:03:00.3]}
4. e3 {[%clk 0:03:02.4]} 4... Nc6 {[%clk 0:03:00.9]} 5. Nbd2 {[%clk 0:03:02.8]}
5... Nh5 {[%clk 0:03:00.8]} 6. dxc5 {[%clk 0:03:00.6]} 6... Nxf4 {[%clk
0:02:59.9]} 7. exf4 {[%clk 0:03:01.5]} 7... Qa5 {[%clk 0:03:00.3]} 8. Bd3 {[%clk
0:02:59.9]} 8... Qxc5 {[%clk 0:02:56.2]} 9. O-O {[%clk 0:03:00.4]} 9... g6
{[%clk 0:02:56.5]} 10. c4 {[%clk 0:02:58.9]} 10... dxc4 {[%clk 0:02:54.4]} 11.
Nxc4 {[%clk 0:02:58.5]} 11... Bg7 {[%clk 0:02:54.4]} 12. Rc1 {[%clk 0:02:53.8]}
12... O-O {[%clk 0:02:54.3]} 13. Nce5 {[%clk 0:02:52]} 13... Qa5 {[%clk
0:02:41.5]} 14. Bc4 {[%clk 0:02:32.5]} 14... Nxe5 {[%clk 0:02:38.4]} 15. fxe5
{[%clk 0:02:17.8]} 15... Bg4 {[%clk 0:02:36.1]} 16. h3 {[%clk 0:02:16.2]} 16...
Bxf3 {[%clk 0:02:32.5]} 17. Qxf3 {[%clk 0:02:17.1]} 17... e6 {[%clk 0:02:18.6]}
18. Rfe1 {[%clk 0:02:02.4]} 18... Rac8 {[%clk 0:02:15]} 19. b3 {[%clk
0:01:51.5]} 19... b5 {[%clk 0:02:11.7]} 20. Bf1 {[%clk 0:01:50.9]} 20... Rxc1
{[%clk 0:02:08.3]} 21. Rxc1 {[%clk 0:01:51.8]} 21... a6 {[%clk 0:02:05.3]} 22.
Qe2 {[%clk 0:01:49.7]} 22... Rd8 {[%clk 0:02:01]} 23. Rc2 {[%clk 0:01:42.8]}
23... Qb6 {[%clk 0:01:58.1]} 24. Qe4 {[%clk 0:01:37.1]} 24... h5 {[%clk
0:01:44.6]} 25. a4 {[%clk 0:01:32.5]} 25... bxa4 {[%clk 0:01:40.1]} 26. bxa4
{[%clk 0:01:33.4]} 26... a5 {[%clk 0:01:29.5]} 27. Rc4 {[%clk 0:00:53.9]} 27...
Kh7 {[%clk 0:00:48.4]} 28. g4 {[%clk 0:00:46]} 28... hxg4 {[%clk 0:00:42.9]} 29.
hxg4 {[%clk 0:00:46.9]} 29... Kg8 {[%clk 0:00:27.9]} 30. Bd3 {[%clk 0:00:37.3]}
30... Qb3 {[%clk 0:00:17.8]} 31. Be2 {[%clk 0:00:37.2]} 31... Qb2 {[%clk
0:00:15.9]} 32. Rc5 {[%clk 0:00:35.5]} 32... Bf8 {[%clk 0:00:14.2]} 33. Rb5
{[%clk 0:00:23.8]} 33... Qc3 {[%clk 0:00:09.9]} 34. Qf3 {[%clk 0:00:19.8]} 34...
Qxf3 {[%clk 0:00:09.4]} 35. Bxf3 {[%clk 0:00:20.7]} 35... Bb4 {[%clk 0:00:09.9]}
36. Bc6 {[%clk 0:00:14.3]} 36... Rd4 {[%clk 0:00:09.6]} 37. f3 {[%clk
0:00:12.2]} 37... Bc3 {[%clk 0:00:09.3]} 38. Kf2 {[%clk 0:00:08.4]} 38... Kg7
{[%clk 0:00:07.7]} 39. Rc5 {[%clk 0:00:07.1]} 39... Bb4 {[%clk 0:00:06.1]} 40.
Rb5 {[%clk 0:00:07.8]} 40... Rc4 {[%clk 0:00:06.7]} 41. Be8 {[%clk 0:00:06.5]}
41... Kf8 {[%clk 0:00:06.1]} 42. Rb8 {[%clk 0:00:06.9]} 42... Rc2+ {[%clk
0:00:03.9]} 43. Ke3 {[%clk 0:00:06.7]} 43... Rc3+ {[%clk 0:00:04.2]} 44. Ke4
{[%clk 0:00:05.4]} 44... Ra3 {[%clk 0:00:04.4]} 45. Bb5+ {[%clk 0:00:04.1]}
45... Kg7 {[%clk 0:00:04]} 46. Rb7 {[%clk 0:00:04.7]} 46... Bc5 {[%clk
0:00:03.6]} 47. Be8 {[%clk 0:00:04.1]} 47... Re3+ {[%clk 0:00:04.2]} 48. Kf4
{[%clk 0:00:04.5]} 48... g5+ {[%clk 0:00:04.8]} 49. Kxg5 {[%clk 0:00:03.8]}
49... Rxf3 {[%clk 0:00:04.7]} 50. Kh4 {[%clk 0:00:02.7]} 50... Bf2+ {[%clk
0:00:04.8]} 51. Kg5 {[%clk 0:00:03.4]} 51... Be3+ {[%clk 0:00:05]} 52. Kh4
{[%clk 0:00:03.9]} 52... Bd4 {[%clk 0:00:03.5]} 53. Rb5 {[%clk 0:00:02.4]} 53...
Re3 {[%clk 0:00:03.5]} 54. Rxa5 {[%clk 0:00:02.2]} 54... Bxe5 {[%clk 0:00:04.1]}
55. g5 {[%clk 0:00:02.8]} 55... Re4+ {[%clk 0:00:03.6]} 56. Kh3 {[%clk
0:00:03.1]} 56... Re3+ {[%clk 0:00:03.7]} 57. Kg4 {[%clk 0:00:03.2]} 57... Kf8
{[%clk 0:00:02.5]} 58. Bc6 {[%clk 0:00:03]} 58... Bc7 {[%clk 0:00:02.7]} 59. Ra7
{[%clk 0:00:03.2]} 59... Bd6 {[%clk 0:00:02.2]} 60. a5 {[%clk 0:00:03.2]} 60...
Rg3+ {[%clk 0:00:02.2]} 61. Kh4 {[%clk 0:00:03.4]} 61... Rc3 {[%clk 0:00:03]}
62. Bb5 {[%clk 0:00:02.3]} 62... Rc5 {[%clk 0:00:03]} 63. Bd7 {[%clk 0:00:02.4]}
63... Be7 {[%clk 0:00:03.2]} 64. a6 {[%clk 0:00:02.3]} 64... Rxg5 {[%clk
0:00:03.9]} 65. Kh3 {[%clk 0:00:02.5]} 65... Ra5 {[%clk 0:00:04.8]} 66. Ra8+
{[%clk 0:00:02.3]} 66... Kg7 {[%clk 0:00:05.4]} 67. Be8 {[%clk 0:00:02.3]} 67...
Bc5 {[%clk 0:00:04.8]} 68. Rc8 {[%clk 0:00:02.8]} 68... Ra3+ {[%clk 0:00:05.4]}
69. Kg2 {[%clk 0:00:02.7]} 69... Bd6 {[%clk 0:00:05.3]} 70. Rc6 {[%clk
0:00:02.6]} 70... Bf4 {[%clk 0:00:04.1]} 71. Rb6 {[%clk 0:00:03.2]} 71... Kf8
{[%clk 0:00:04.2]} 72. Bb5 {[%clk 0:00:03.5]} 72... Be3 {[%clk 0:00:04.2]} 73.
Rb7 {[%clk 0:00:03.4]} 73... Bc5 {[%clk 0:00:03.3]} 74. Kf1 {[%clk 0:00:03.1]}
74... f5 {[%clk 0:00:03.2]} 75. Bc4 {[%clk 0:00:03.3]} 75... f4 {[%clk
0:00:02.2]} 76. Ke2 {[%clk 0:00:02.2]} 76... e5 {[%clk 0:00:02.4]} 77. Rf7+
{[%clk 0:00:01.7]} 77... Ke8 {[%clk 0:00:02.5]} 78. Rc7 {[%clk 0:00:02.4]} 78...
Bd4 {[%clk 0:00:03.1]} 79. Bb5+ {[%clk 0:00:02.1]} 79... Kd8 {[%clk 0:00:03.6]}
80. Rd7+ {[%clk 0:00:02.4]} 80... Kc8 {[%clk 0:00:04.3]} 81. Rf7 {[%clk
0:00:02.9]} 81... Kb8 {[%clk 0:00:04.1]} 82. Rf8+ {[%clk 0:00:02.2]} 82... Ka7
{[%clk 0:00:04.5]} 83. Rf7+ {[%clk 0:00:03.1]} 83... Kb6 {[%clk 0:00:05.1]} 84.
Rb7+ {[%clk 0:00:03.7]} 84... Ka5 {[%clk 0:00:04.6]} 85. a7 {[%clk 0:00:03.1]}
85... Re3+ {[%clk 0:00:04.9]} 86. Kd1 {[%clk 0:00:03]} 86... Bxa7 {[%clk
0:00:05.8]} 87. Be2 {[%clk 0:00:02.5]} 87... Bd4 {[%clk 0:00:06.7]} 88. Rb5+
{[%clk 0:00:02.7]} 88... Ka4 {[%clk 0:00:07.2]} 89. Rb8 {[%clk 0:00:03.4]} 89...
f3 {[%clk 0:00:07.4]} 90. Bc4 {[%clk 0:00:04]} 90... f2 {[%clk 0:00:07.5]} 91.
Kd2 {[%clk 0:00:04.6]} 91... Re1 {[%clk 0:00:07.6]} 92. Rf8 {[%clk 0:00:03.3]}
92... Kb4 {[%clk 0:00:08.1]} 93. Ba6 {[%clk 0:00:03.5]} 93... e4 {[%clk
0:00:08.5]} 94. Rb8+ {[%clk 0:00:03.4]} 94... Ka5 {[%clk 0:00:08.5]} 95. Bc4
{[%clk 0:00:04.1]} 95... e3+ {[%clk 0:00:08.6]} 96. Kc2 {[%clk 0:00:04.5]} 96...
e2 {[%clk 0:00:08.7]} 97. Kb3 {[%clk 0:00:04.9]} 97... Rb1+ {[%clk 0:00:08.3]}
98. Kc2 {[%clk 0:00:05]} 98... Rxb8 {[%clk 0:00:09.2]} 0-1

[Event "Late-Titled-Tuesday-Blitz-January-23-2024"]
[Site "Chess.com"]
[Date "2024.01.23"]
[Round "11"]
[White "Sjakkerntobi"]
[Black "reevecanada"]
[Result "1-0"]
[WhiteElo "2525"]
[BlackElo "2627"]
[TimeControl "180+1"]
[EndTime "15:57:09 PST"]
[Termination "Sjakkerntobi won by resignation"]

1. e4 {[%clk 0:03:00.9]} 1... c5 {[%clk 0:02:59.2]} 2. Nf3 {[%clk 0:03:01.2]}
2... d6 {[%clk 0:02:59.8]} 3. Nc3 {[%clk 0:03:01]} 3... c4 {[%clk 0:03:00.7]} 4.
Bxc4 {[%clk 0:03:00.7]} 4... Nf6 {[%clk 0:02:59.6]} 5. O-O {[%clk 0:03:00.2]}
5... Nbd7 {[%clk 0:02:58.7]} 6. d4 {[%clk 0:03:00.3]} 6... Qc7 {[%clk
0:02:57.6]} 7. Qe2 {[%clk 0:03:00]} 7... a6 {[%clk 0:02:57.8]} 8. e5 {[%clk
0:03:00.1]} 8... Ng8 {[%clk 0:02:49.7]} 9. Nd5 {[%clk 0:02:49.5]} 9... Qb8
{[%clk 0:02:36.8]} 10. exd6 {[%clk 0:02:46.6]} 10... e6 {[%clk 0:02:28.8]} 11.
Nc7+ {[%clk 0:02:45.9]} 11... Kd8 {[%clk 0:02:29.4]} 12. Bf4 {[%clk 0:02:32.7]}
12... b5 {[%clk 0:02:27.7]} 13. Bxe6 {[%clk 0:02:31.4]} 13... fxe6 {[%clk
0:02:27.1]} 14. Nxe6+ {[%clk 0:02:32.3]} 14... Ke8 {[%clk 0:02:24.5]} 15. Nc7+
{[%clk 0:02:33.2]} 1-0

[Event "Late-Titled-Tuesday-Blitz-January-23-2024"]
[Site "Chess.com"]
[Date "2024.01.23"]
[Round "11"]
[White "Jarrahi2452"]
[Black "emeli_chess"]
[Result "1-0"]
[WhiteElo "2667"]
[BlackElo "2492"]
[TimeControl "180+1"]
[EndTime "15:57:15 PST"]
[Termination "Jarrahi2452 won by resignation"]

1. d4 {[%clk 0:03:00.9]} 1... Nf6 {[%clk 0:02:59.5]} 2. Bf4 {[%clk 0:03:01.1]}
2... d5 {[%clk 0:02:59]} 3. e3 {[%clk 0:03:00.3]} 3... e6 {[%clk 0:02:58.9]} 4.
Nf3 {[%clk 0:02:56.9]} 4... Bd6 {[%clk 0:02:58.9]} 5. Bg3 {[%clk 0:02:56.7]}
5... O-O {[%clk 0:02:58.4]} 6. c3 {[%clk 0:02:54.1]} 6... c5 {[%clk 0:02:56]} 7.
Nbd2 {[%clk 0:02:53.9]} 7... Qc7 {[%clk 0:02:55.4]} 8. Bd3 {[%clk 0:02:50.2]}
8... Nbd7 {[%clk 0:02:54.7]} 9. Qe2 {[%clk 0:02:42.4]} 9... e5 {[%clk 0:02:48]}
10. dxe5 {[%clk 0:02:41.5]} 10... Nxe5 {[%clk 0:02:47.9]} 11. Nxe5 {[%clk
0:02:40.7]} 11... Bxe5 {[%clk 0:02:47.8]} 12. Bxe5 {[%clk 0:02:38]} 12... Qxe5
{[%clk 0:02:47.3]} 13. O-O {[%clk 0:02:37.8]} 13... Bf5 {[%clk 0:02:36.2]} 14.
Nf3 {[%clk 0:02:33.5]} 14... Bxd3 {[%clk 0:02:33.2]} 15. Qxd3 {[%clk 0:02:34.4]}
15... Qf5 {[%clk 0:02:31]} 16. Qxf5 {[%clk 0:02:31.8]} 1-0

[Event "Late-Titled-Tuesday-Blitz-January-23-2024"]
[Site "Chess.com"]
[Date "2024.01.23"]
[Round "11"]
[White "ValeriyGrinev"]
[Black "BeanScreen"]
[Result "0-1"]
[WhiteElo "2545"]
[BlackElo "2733"]
[TimeControl "180+1"]
[EndTime "15:58:08 PST"]
[Termination "BeanScreen won by resignation"]

1. e4 {[%clk 0:03:00.9]} 1... e5 {[%clk 0:03:00]} 2. Nf3 {[%clk 0:03:00.6]} 2...
Nc6 {[%clk 0:03:00.3]} 3. Bb5 {[%clk 0:03:01.1]} 3... f5 {[%clk 0:02:59.9]} 4.
d3 {[%clk 0:02:59.7]} 4... fxe4 {[%clk 0:02:59.9]} 5. dxe4 {[%clk 0:02:59.5]}
5... Nf6 {[%clk 0:03:00.1]} 6. O-O {[%clk 0:02:57.4]} 6... Bc5 {[%clk
0:02:59.3]} 7. Bg5 {[%clk 0:02:54.8]} 7... d6 {[%clk 0:02:53.9]} 8. Nc3 {[%clk
0:02:51.7]} 8... O-O {[%clk 0:02:51.7]} 9. h3 {[%clk 0:02:50.8]} 9... h6 {[%clk
0:02:48.6]} 10. Bc4+ {[%clk 0:02:50.2]} 10... Kh8 {[%clk 0:02:46.7]} 11. Bh4
{[%clk 0:02:50.7]} 11... g5 {[%clk 0:02:45.6]} 12. Bg3 {[%clk 0:02:50.7]} 12...
Nh5 {[%clk 0:02:39.5]} 13. Nd4 {[%clk 0:02:43.7]} 13... Nxg3 {[%clk 0:02:32.2]}
14. Nxc6 {[%clk 0:02:43.2]} 14... bxc6 {[%clk 0:02:30.6]} 15. Na4 {[%clk
0:02:41.4]} 15... Nxf1 {[%clk 0:02:28.4]} 16. Nxc5 {[%clk 0:02:40.5]} 16... dxc5
{[%clk 0:02:28.7]} 17. Qh5 {[%clk 0:02:37.9]} 17... Qf6 {[%clk 0:02:25.8]} 18.
Rxf1 {[%clk 0:02:36.8]} 18... Be6 {[%clk 0:02:25.4]} 19. Be2 {[%clk 0:02:25.2]}
19... Kg7 {[%clk 0:02:24.7]} 20. g3 {[%clk 0:02:23.9]} 20... Qf7 {[%clk
0:02:24.3]} 21. h4 {[%clk 0:02:20.1]} 21... Qxh5 {[%clk 0:02:23.6]} 22. Bxh5
{[%clk 0:02:21]} 22... g4 {[%clk 0:02:21.6]} 23. f3 {[%clk 0:02:20.1]} 23...
Rad8 {[%clk 0:02:20]} 24. fxg4 {[%clk 0:02:19.5]} 24... Rxf1+ {[%clk 0:02:19.6]}
25. Kxf1 {[%clk 0:02:19.5]} 25... Rd2 {[%clk 0:02:19.9]} 26. b3 {[%clk 0:02:19]}
26... Rxc2 {[%clk 0:02:19.6]} 27. g5 {[%clk 0:02:19.9]} 27... hxg5 {[%clk
0:02:18.8]} 28. hxg5 {[%clk 0:02:20.8]} 28... Rxa2 {[%clk 0:02:17.9]} 29. Be8
{[%clk 0:02:21.7]} 29... Bxb3 {[%clk 0:02:16.6]} 30. Bxc6 {[%clk 0:02:22.2]}
30... c4 {[%clk 0:02:16.6]} 31. Bd5 {[%clk 0:02:22]} 31... c6 {[%clk 0:02:15.2]}
32. Bxc4 {[%clk 0:02:22.4]} 32... Bxc4+ {[%clk 0:02:15.1]} 0-1

[Event "Late-Titled-Tuesday-Blitz-January-23-2024"]
[Site "Chess.com"]
[Date "2024.01.23"]
[Round "11"]
[White "McCarthyStone"]
[Black "katharinareinecke"]
[Result "1-0"]
[WhiteElo "2340"]
[BlackElo "1977"]
[TimeControl "180+1"]
[EndTime "15:59:58 PST"]
[Termination "McCarthyStone won by checkmate"]

1. c4 {[%clk 0:03:00.9]} 1... c6 {[%clk 0:02:56.9]} 2. Nf3 {[%clk 0:02:56.3]}
2... d5 {[%clk 0:02:56.8]} 3. e3 {[%clk 0:02:57]} 3... Nf6 {[%clk 0:02:56.8]} 4.
b3 {[%clk 0:02:56.5]} 4... e6 {[%clk 0:02:56.6]} 5. Bb2 {[%clk 0:02:57]} 5...
Be7 {[%clk 0:02:56.6]} 6. Nc3 {[%clk 0:02:56.1]} 6... O-O {[%clk 0:02:56.6]} 7.
Qc2 {[%clk 0:02:56.6]} 7... b6 {[%clk 0:02:55.8]} 8. g4 {[%clk 0:02:56.7]} 8...
Bb7 {[%clk 0:02:51]} 9. g5 {[%clk 0:02:56.5]} 9... Ne8 {[%clk 0:02:50.9]} 10.
Bd3 {[%clk 0:02:56.5]} 10... g6 {[%clk 0:02:49.3]} 11. h4 {[%clk 0:02:56.8]}
11... c5 {[%clk 0:02:46.4]} 12. h5 {[%clk 0:02:34.1]} 12... dxc4 {[%clk
0:02:40.8]} 13. Be2 {[%clk 0:02:08.7]} 13... Bxg5 {[%clk 0:02:35]} 14. hxg6
{[%clk 0:02:07.6]} 14... fxg6 {[%clk 0:02:29]} 15. Ne4 {[%clk 0:01:54]} 15...
cxb3 {[%clk 0:02:11.4]} 16. axb3 {[%clk 0:01:52.6]} 16... Bf6 {[%clk 0:02:08.2]}
17. Nxf6+ {[%clk 0:01:50.9]} 17... Nxf6 {[%clk 0:02:07.3]} 18. O-O-O {[%clk
0:01:36.6]} 18... Nc6 {[%clk 0:02:01]} 19. Rdg1 {[%clk 0:01:29.3]} 19... Kg7
{[%clk 0:01:43.8]} 20. Rxh7+ {[%clk 0:01:19.3]} 20... Kxh7 {[%clk 0:01:27.9]}
21. Qxg6+ {[%clk 0:01:09.4]} 21... Kh8 {[%clk 0:01:26.1]} 22. Qh5# {[%clk
0:00:56]} 1-0

[Event "Late-Titled-Tuesday-Blitz-January-23-2024"]
[Site "Chess.com"]
[Date "2024.01.23"]
[Round "11"]
[White "Harry_Rakkel"]
[Black "jcibarra"]
[Result "0-1"]
[WhiteElo "2714"]
[BlackElo "2854"]
[TimeControl "180+1"]
[EndTime "16:00:23 PST"]
[Termination "jcibarra won by resignation"]

1. e4 {[%clk 0:02:48]} 1... c5 {[%clk 0:02:59.8]} 2. Nf3 {[%clk 0:02:47.4]} 2...
e6 {[%clk 0:02:59.9]} 3. d4 {[%clk 0:02:47.3]} 3... cxd4 {[%clk 0:03:00.5]} 4.
Nxd4 {[%clk 0:02:47.1]} 4... Bc5 {[%clk 0:03:01]} 5. Nb3 {[%clk 0:02:45.9]} 5...
Bb6 {[%clk 0:03:01.2]} 6. c4 {[%clk 0:02:42]} 6... Ne7 {[%clk 0:03:00.1]} 7. Nc3
{[%clk 0:02:39.4]} 7... O-O {[%clk 0:02:58.1]} 8. c5 {[%clk 0:02:35.3]} 8... Bc7
{[%clk 0:02:57.8]} 9. Nb5 {[%clk 0:02:34.8]} 9... Nbc6 {[%clk 0:02:56.7]} 10.
Be2 {[%clk 0:02:28.3]} 10... Bb8 {[%clk 0:02:53.3]} 11. O-O {[%clk 0:02:25.4]}
11... f5 {[%clk 0:02:52.9]} 12. Nd6 {[%clk 0:02:14.7]} 12... f4 {[%clk
0:02:48.1]} 13. Bd2 {[%clk 0:01:57.8]} 13... Ng6 {[%clk 0:02:43.1]} 14. Bc3
{[%clk 0:01:54.8]} 14... b6 {[%clk 0:02:40]} 15. Rc1 {[%clk 0:01:42.9]} 15...
Nce5 {[%clk 0:02:36.3]} 16. f3 {[%clk 0:01:37.7]} 16... bxc5 {[%clk 0:02:32.8]}
17. Ba5 {[%clk 0:01:26.8]} 17... Qe7 {[%clk 0:02:27.8]} 18. Nxc8 {[%clk
0:01:09.8]} 18... Rxc8 {[%clk 0:02:27.5]} 19. Ba6 {[%clk 0:01:09.9]} 19... Bd6
{[%clk 0:02:22.4]} 20. Bxc8 {[%clk 0:01:04]} 20... Rxc8 {[%clk 0:02:23.3]} 21.
Qe2 {[%clk 0:01:03]} 21... c4 {[%clk 0:02:23.2]} 22. Nd4 {[%clk 0:01:01.6]}
22... Bc5 {[%clk 0:02:21.2]} 23. Kh1 {[%clk 0:01:00.6]} 23... Bxd4 {[%clk
0:02:17.8]} 24. Rfd1 {[%clk 0:00:59.9]} 24... Be3 {[%clk 0:02:13.5]} 25. Rc2
{[%clk 0:00:58.1]} 25... h6 {[%clk 0:02:07.1]} 26. b3 {[%clk 0:00:55]} 26... Qc5
{[%clk 0:01:52.3]} 27. Be1 {[%clk 0:00:45.8]} 27... d5 {[%clk 0:01:43]} 28. exd5
{[%clk 0:00:45.3]} 28... exd5 {[%clk 0:01:43]} 29. bxc4 {[%clk 0:00:45.3]} 29...
d4 {[%clk 0:01:41.6]} 30. Rb1 {[%clk 0:00:35.4]} 30... d3 {[%clk 0:01:40.8]} 0-1

[Event "Late-Titled-Tuesday-Blitz-January-23-2024"]
[Site "Chess.com"]
[Date "2024.01.23"]
[Round "11"]
[White "Jem"]
[Black "Walter_White_Poland"]
[Result "1-0"]
[WhiteElo "2179"]
[BlackElo "2302"]
[TimeControl "180+1"]
[EndTime "16:00:30 PST"]
[Termination "Jem won on time"]

1. e4 {[%clk 0:03:00.9]} 1... e5 {[%clk 0:03:00]} 2. Nf3 {[%clk 0:03:01]} 2...
Nc6 {[%clk 0:03:00.2]} 3. Bb5 {[%clk 0:02:54.3]} 3... a6 {[%clk 0:03:00.1]} 4.
Ba4 {[%clk 0:02:54.5]} 4... Nf6 {[%clk 0:02:59.6]} 5. O-O {[%clk 0:02:54.1]}
5... Be7 {[%clk 0:02:59.7]} 6. d4 {[%clk 0:02:49]} 6... exd4 {[%clk 0:02:57.9]}
7. Re1 {[%clk 0:02:47.8]} 7... b5 {[%clk 0:02:51.9]} 8. Bb3 {[%clk 0:02:47.3]}
8... d6 {[%clk 0:02:46.1]} 9. Bd5 {[%clk 0:02:46.9]} 9... Nxd5 {[%clk
0:02:32.7]} 10. exd5 {[%clk 0:02:46.6]} 10... Ne5 {[%clk 0:02:32.7]} 11. Nxd4
{[%clk 0:02:46.9]} 11... O-O {[%clk 0:02:03.9]} 12. f4 {[%clk 0:02:45.9]} 12...
Bg4 {[%clk 0:02:03.5]} 13. Qd2 {[%clk 0:02:40.1]} 13... Nc4 {[%clk 0:01:55.9]}
14. Qf2 {[%clk 0:02:34.8]} 14... Bh4 {[%clk 0:01:46.1]} 15. g3 {[%clk
0:02:27.9]} 15... Bf6 {[%clk 0:01:42.8]} 16. Nc3 {[%clk 0:02:19.6]} 16... c5
{[%clk 0:01:23.8]} 17. Nc6 {[%clk 0:02:16.3]} 17... Qb6 {[%clk 0:01:12.8]} 18.
Ne4 {[%clk 0:02:09.3]} 18... Bxb2 {[%clk 0:01:01.2]} 19. Bxb2 {[%clk 0:02:08.6]}
19... Nxb2 {[%clk 0:01:01.2]} 20. f5 {[%clk 0:02:02.7]} 20... Nc4 {[%clk
0:00:37.6]} 21. Qf4 {[%clk 0:01:57.4]} 21... h5 {[%clk 0:00:13.6]} 22. f6 {[%clk
0:01:56.4]} 22... Ne5 {[%clk 0:00:01.3]} 23. fxg7 {[%clk 0:01:51.9]} 1-0

[Event "Late-Titled-Tuesday-Blitz-January-23-2024"]
[Site "Chess.com"]
[Date "2024.01.23"]
[Round "11"]
[White "annasargsyan_m"]
[Black "Piotrek1979"]
[Result "1-0"]
[WhiteElo "2539"]
[BlackElo "2403"]
[TimeControl "180+1"]
[EndTime "16:00:33 PST"]
[Termination "annasargsyan_m won on time"]

1. d4 {[%clk 0:03:00.9]} 1... Nf6 {[%clk 0:02:58.7]} 2. c4 {[%clk 0:03:01]} 2...
e6 {[%clk 0:02:57.4]} 3. Nf3 {[%clk 0:03:00.8]} 3... d5 {[%clk 0:02:57]} 4. Nc3
{[%clk 0:03:01.3]} 4... c6 {[%clk 0:02:55.5]} 5. Bg5 {[%clk 0:03:00.6]} 5...
Nbd7 {[%clk 0:02:56]} 6. e3 {[%clk 0:03:01.1]} 6... Qa5 {[%clk 0:02:54.7]} 7.
Qc2 {[%clk 0:02:57.5]} 7... Ne4 {[%clk 0:02:50.5]} 8. cxd5 {[%clk 0:02:55.6]}
8... exd5 {[%clk 0:02:46]} 9. Bf4 {[%clk 0:02:55.1]} 9... Bb4 {[%clk 0:02:42.9]}
10. Rc1 {[%clk 0:02:55.3]} 10... O-O {[%clk 0:02:37.2]} 11. Bd3 {[%clk
0:02:55.7]} 11... Re8 {[%clk 0:02:26.2]} 12. O-O {[%clk 0:02:55]} 12... Ndf6
{[%clk 0:01:42.6]} 13. Ne5 {[%clk 0:02:51.7]} 13... g6 {[%clk 0:01:19.7]} 14.
Ne2 {[%clk 0:02:50]} 14... Bf8 {[%clk 0:01:15.1]} 15. a3 {[%clk 0:02:47]} 15...
Nd6 {[%clk 0:01:13]} 16. b4 {[%clk 0:02:44]} 16... Qd8 {[%clk 0:01:11.2]} 17. a4
{[%clk 0:02:41.4]} 17... a6 {[%clk 0:01:10.6]} 18. Rb1 {[%clk 0:02:35.9]} 18...
Nh5 {[%clk 0:01:07.1]} 19. b5 {[%clk 0:02:32]} 19... axb5 {[%clk 0:01:05.5]} 20.
axb5 {[%clk 0:02:32.9]} 20... cxb5 {[%clk 0:01:03.7]} 21. Bxb5 {[%clk
0:02:32.4]} 21... Bf5 {[%clk 0:01:02.2]} 22. Bd3 {[%clk 0:02:32.5]} 22... Rc8
{[%clk 0:00:59.2]} 23. Qb3 {[%clk 0:02:28.7]} 23... Bxd3 {[%clk 0:00:57.7]} 24.
Qxd3 {[%clk 0:02:29.6]} 24... f6 {[%clk 0:00:52.2]} 25. Nxg6 {[%clk 0:02:26]}
25... hxg6 {[%clk 0:00:48.9]} 26. Qxg6+ {[%clk 0:02:26.9]} 26... Ng7 {[%clk
0:00:48.6]} 27. Bxd6 {[%clk 0:02:26.9]} 27... Bxd6 {[%clk 0:00:46.1]} 28. Rxb7
{[%clk 0:02:26]} 28... Rc7 {[%clk 0:00:45.1]} 29. Rfb1 {[%clk 0:02:24]} 29...
Rxb7 {[%clk 0:00:24.8]} 30. Rxb7 {[%clk 0:02:23.4]} 30... Re7 {[%clk 0:00:25.4]}
31. Qxf6 {[%clk 0:02:23.7]} 31... Qa5 {[%clk 0:00:08.9]} 32. Rb1 {[%clk
0:02:19.9]} 32... Re6 {[%clk 0:00:07.8]} 33. Qg5 {[%clk 0:02:16.2]} 33... Qd2
{[%clk 0:00:04.3]} 34. Ng3 {[%clk 0:02:16.1]} 34... Be7 {[%clk 0:00:01.5]} 35.
Qxd5 {[%clk 0:02:15.6]} 1-0

[Event "Late-Titled-Tuesday-Blitz-January-23-2024"]
[Site "Chess.com"]
[Date "2024.01.23"]
[Round "11"]
[White "GM_dmitrij"]
[Black "BardArtem"]
[Result "1-0"]
[WhiteElo "2999"]
[BlackElo "2798"]
[TimeControl "180+1"]
[EndTime "16:00:39 PST"]
[Termination "GM_dmitrij won by checkmate"]

1. e4 {[%clk 0:03:00.9]} 1... c5 {[%clk 0:02:58.9]} 2. Nf3 {[%clk 0:03:00.6]}
2... d6 {[%clk 0:02:58.9]} 3. d4 {[%clk 0:02:57.3]} 3... cxd4 {[%clk 0:02:59.8]}
4. Nxd4 {[%clk 0:02:57.6]} 4... Nf6 {[%clk 0:02:59.9]} 5. Nc3 {[%clk 0:02:58.3]}
5... g6 {[%clk 0:03:00.1]} 6. Be3 {[%clk 0:02:55.2]} 6... Nc6 {[%clk 0:02:59.6]}
7. f3 {[%clk 0:02:53.1]} 7... h5 {[%clk 0:02:59.5]} 8. Qd2 {[%clk 0:02:52]} 8...
Nxd4 {[%clk 0:02:58.4]} 9. Bxd4 {[%clk 0:02:49.7]} 9... Bh6 {[%clk 0:02:58.1]}
10. Bb5+ {[%clk 0:02:43.4]} 10... Kf8 {[%clk 0:02:56.9]} 11. Qf2 {[%clk
0:02:40.2]} 11... Kg7 {[%clk 0:02:50.5]} 12. O-O {[%clk 0:02:38.8]} 12... a6
{[%clk 0:02:46.9]} 13. Bb6 {[%clk 0:02:37.8]} 13... Qf8 {[%clk 0:02:40.1]} 14.
Bc4 {[%clk 0:02:37.4]} 14... Be6 {[%clk 0:02:36.8]} 15. Bb3 {[%clk 0:02:35.5]}
15... Rc8 {[%clk 0:02:33.4]} 16. Rad1 {[%clk 0:02:34.3]} 16... Bxb3 {[%clk
0:02:31.5]} 17. axb3 {[%clk 0:02:35.2]} 17... Qe8 {[%clk 0:02:26.9]} 18. Bd4
{[%clk 0:02:33.3]} 18... e5 {[%clk 0:02:16.3]} 19. Be3 {[%clk 0:02:24.2]} 19...
Bxe3 {[%clk 0:02:15.1]} 20. Qxe3 {[%clk 0:02:25.1]} 20... Qe6 {[%clk 0:02:15.6]}
21. Rf2 {[%clk 0:02:24.8]} 21... Rc6 {[%clk 0:02:14.6]} 22. Nd5 {[%clk
0:02:23.9]} 22... Rhc8 {[%clk 0:02:11.1]} 23. c3 {[%clk 0:02:21.5]} 23... Rc5
{[%clk 0:02:09.9]} 24. Nxf6 {[%clk 0:02:14.5]} 24... Qxf6 {[%clk 0:02:10.7]} 25.
Rfd2 {[%clk 0:02:13]} 25... R5c6 {[%clk 0:02:09.3]} 26. Rd5 {[%clk 0:02:11.2]}
26... Qe6 {[%clk 0:02:07]} 27. b4 {[%clk 0:02:08.5]} 27... b5 {[%clk 0:01:59]}
28. Qd2 {[%clk 0:02:00]} 28... Rd8 {[%clk 0:01:57.2]} 29. h4 {[%clk 0:01:58.9]}
29... Qf6 {[%clk 0:01:54.9]} 30. Qg5 {[%clk 0:01:58.2]} 30... Qxg5 {[%clk
0:01:46.8]} 31. hxg5 {[%clk 0:01:59.1]} 31... f6 {[%clk 0:01:47.6]} 32. Kf2
{[%clk 0:01:59.4]} 32... Kf7 {[%clk 0:01:46]} 33. g3 {[%clk 0:01:54.5]} 33...
Ke6 {[%clk 0:01:44.1]} 34. gxf6 {[%clk 0:01:54.6]} 34... Kxf6 {[%clk 0:01:45]}
35. f4 {[%clk 0:01:52.8]} 35... exf4 {[%clk 0:01:40.2]} 36. gxf4 {[%clk
0:01:53.7]} 36... Rd7 {[%clk 0:01:27.6]} 37. Ke3 {[%clk 0:01:50.9]} 37... Rd8
{[%clk 0:01:23.1]} 38. Rg1 {[%clk 0:01:48.2]} 38... Rc4 {[%clk 0:01:10.1]} 39.
Rdg5 {[%clk 0:01:44.8]} 39... Rg8 {[%clk 0:01:09.7]} 40. f5 {[%clk 0:01:41.5]}
40... d5 {[%clk 0:00:56.4]} 41. Rxg6+ {[%clk 0:01:35.9]} 41... Rxg6 {[%clk
0:00:56.1]} 42. Rxg6+ {[%clk 0:01:36.8]} 42... Ke5 {[%clk 0:00:56.8]} 43. Re6#
{[%clk 0:01:36.4]} 1-0